[Event "Najdorf Memorial-B 2022"]
[Site "Warsaw"]
[Date "2022.07.11"]
[Round "3.4"]
[White "Marciniak, Kajetan"]
[Black "Yasmo, Daniil"]
[Result "0-1"]
[ECO "A05"]
[WhiteElo "1371"]
[BlackElo "1680"]
[Annotator "NA RC"]
[PlyCount "82"]
[EventDate "2022.07.09"]
[EventType "swiss"]
[EventCountry "POL"]
[SourceTitle "playchess.com"]
[Source "ChessBase"]
[SourceQuality "1"]
[TimeControl "40/5400+30:1800+30"]

1. Nf3 {[%emt 0:00:05]} Nf6 {[%emt 0:00:12]} 2. c4 {[%emt 0:00:01]} g6 {[%emt 0:00:23]} 3. b4 {[%emt 0:00:58]} Bg7 {[%emt 0:00:05]} 4. Bb2 {[%emt 0:00:01]} O-O {[%emt 0:00:19]} 5. g3 {[%emt 0:00:35]} c6 {[%emt 0:00:14]} 6. Bg2 {[%emt 0:00:10]} a5 {[%emt 0:00:27]} 7. b5 {[%emt 0:02:27]} a4 {[%emt 0:03:46]} 8. Na3 {[%emt 0:02:37]} d6 {[%emt 0:02:16]} 9. O-O {[%emt 0:01:11]} e5 {[%emt 0:01:10]} 10. d3 {[%emt 0:01:07]} Nbd7 {[%emt 0:06:03]} 11. e3 {[%emt 0:05:09]} Re8 {[%emt 0:01:06]} 12. bxc6 {[%emt 0:08:08]} bxc6 {[%emt 0:00:01]} 13. Ng5 {[%emt 0:00:24]} d5 {[%emt 0:03:20]} 14. cxd5 {[%emt 0:04:07]} cxd5 {[%emt 0:00:12]} 15. Nc4 {[%emt 0:00:25]} h6 {[%emt 0:00:31]} 16. Nh3 Ra6 {[%emt 0:03:25]} 17. Na3 {[%emt 0:20:59]} Qa5 {[%emt 0:03:38]} 18. Qc2 {[%emt 0:06:20]} Bb7 {[%emt 0:01:14]} 19. Rfc1 {[%emt 0:01:31]} Rc6 {[%emt 0:03:07]} 20. Qd1 {[%emt 0:00:58]} Rec8 {[%emt 0:01:14]} 21. Rxc6 {[%emt 0:00:39]} Rxc6 {[%emt 0:00:11]} 22. Rc1 {[%emt 0:00:11]} Rxc1 {[%emt 0:05:21]} 23. Qxc1 {[%emt 0:00:02]} Nc5 {[%emt 0:01:22]} 24. Bxe5 {[%emt 0:01:58]} Nxd3 {[%emt 0:00:12]} 25. Qc3 {[%emt 0:00:03]} Qxc3 {[%emt 0:00:25]} 26. Bxc3 {[%emt 0:00:02]} Nc1 {[%emt 0:05:05]} 27. Bd4 {[%emt 0:09:36]} g5 {[%emt 0:01:44]} 28. f4 {[%emt 0:02:04]} g4 {[%emt 0:01:19]} 29. Nf2 {[%emt 0:00:02]} Nxa2 {[%emt 0:00:54]} 30. Bf1 {[%emt 0:00:49]} Bc6 {[%emt 0:00:53]} 31. Nd3 {[%emt 0:01:11]} Ne4 {[%emt 0:01:25]} 32. Bxg7 {[%emt 0:01:15]} Kxg7 {[%emt 0:00:05]} 33. Ne5 {[%emt 0:00:34]} Be8 {[%emt 0:00:29]} 34. Ba6 {[%emt 0:04:25]} Nb4 {[%emt 0:01:41]} 35. Bb7 {[%emt 0:00:11]} Nd6 {[%emt 0:00:37]} 36. Ba8 {[%emt 0:00:48]} h5 {[%emt 0:01:03]} 37. h3 {[%emt 0:07:30]} f6 {[%emt 0:00:24]} 38. hxg4 {[%emt 0:01:30]} fxe5 {[%emt 0:00:04]} 39. fxe5 {[%emt 0:00:25]} Nc4 {[%emt 0:00:09]} 40. Nxc4 {[%emt 0:00:00]} dxc4 {[%emt 0:00:00]} 41. gxh5 {[%emt 0:01:42]} a3 0-1

[Event "Najdorf Memorial-B 2022"]
[Site "Warsaw"]
[Date "2022.07.11"]
[Round "3.5"]
[White "Slusarczyk, Anna"]
[Black "Wasiluk, Mateusz"]
[Result "1-0"]
[ECO "A48"]
[WhiteElo "1637"]
[BlackElo "1496"]
[Annotator "NA RC"]
[PlyCount "65"]
[EventDate "2022.07.09"]
[EventType "swiss"]
[EventCountry "POL"]
[SourceTitle "playchess.com"]
[Source "ChessBase"]
[SourceQuality "1"]
[TimeControl "40/5400+30:1800+30"]

1. d4 {[%emt 0:00:01]} Nf6 {[%emt 0:00:05]} 2. Nf3 {[%emt 0:00:06]} g6 {[%emt 0:00:06]} 3. Bf4 {[%emt 0:00:04]} d6 {[%emt 0:00:11]} 4. e3 {[%emt 0:00:06]} Bg7 {[%emt 0:00:04]} 5. h3 {[%emt 0:00:03]} O-O {[%emt 0:00:09]} 6. Bh2 {[%emt 0:00:03]} Nbd7 {[%emt 0:00:36]} 7. c3 {[%emt 0:00:17]} Qe8 {[%emt 0:00:30]} 8. Be2 {[%emt 0:00:40]} e5 {[%emt 0:00:29]} 9. O-O {[%emt 0:05:55]} b6 {[%emt 0:00:49]} 10. a4 {[%emt 0:05:46]} Bb7 {[%emt 0:05:15]} 11. Na3 {[%emt 0:02:50]} e4 {[%emt 0:02:59]} 12. Nd2 {[%emt 0:00:21]} a6 {[%emt 0:14:02]} 13. a5 {[%emt 0:00:51]} Qe7 {[%emt 0:01:05]} 14. axb6 {[%emt 0:05:45]} Nxb6 {[%emt 0:00:14]} 15. Nac4 {[%emt 0:01:07]} Nxc4 {[%emt 0:00:52]} 16. Nxc4 {[%emt 0:00:04]} Bc6 {[%emt 0:01:13]} 17. Na5 {[%emt 0:01:24]} Bb5 {[%emt 0:00:12]} 18. c4 {[%emt 0:02:33]} Bd7 {[%emt 0:00:07]} 19. Qd2 {[%emt 0:01:16]} d5 {[%emt 0:12:40]} 20. Bxc7 {[%emt 0:10:42]} Bxh3 {[%emt 0:02:38]} 21. Bg3 {[%emt 0:00:24]} Bd7 {[%emt 0:05:37]} 22. c5 {[%emt 0:00:18]} Ne8 {[%emt 0:03:34]} 23. Qb4 {[%emt 0:03:18]} Bb5 {[%emt 0:09:13]} 24. Bxb5 {[%emt 0:01:26]} axb5 {[%emt 0:00:07]} 25. Qxb5 {[%emt 0:00:56]} f5 {[%emt 0:01:33]} 26. Nc6 {[%emt 0:00:09]} Qf7 {[%emt 0:00:48]} 27. Rxa8 {[%emt 0:00:18]} g5 {[%emt 0:00:10]} 28. Be5 {[%emt 0:03:25]} f4 {[%emt 0:00:36]} 29. Nd8 {[%emt 0:04:13]} Qh5 {[%emt 0:00:13]} 30. Qd7 {[%emt 0:00:22]} Bxe5 {[%emt 0:01:23]} 31. Qxd5+ {[%emt 0:00:08]} Kh8 {[%emt 0:00:25]} 32. Qxe5+ {[%emt 0:01:15]} Nf6 {[%emt 0:00:30]} 33. Ne6 {[%emt 0:00:11]} 1-0

[Event "Najdorf Memorial-B 2022"]
[Site "Warsaw"]
[Date "2022.07.11"]
[Round "3.6"]
[White "Czarnowicz, Michal"]
[Black "Iwaszkiewicz, Krzysztof"]
[Result "1/2-1/2"]
[ECO "D10"]
[WhiteElo "1346"]
[BlackElo "1630"]
[Annotator "NA RC"]
[PlyCount "59"]
[EventDate "2022.07.09"]
[EventType "swiss"]
[EventCountry "POL"]
[SourceTitle "playchess.com"]
[Source "ChessBase"]
[SourceQuality "1"]
[TimeControl "40/5400+30:1800+30"]

1. d4 {[%emt 0:00:02]} d5 {[%emt 0:00:02]} 2. c4 {[%emt 0:00:04]} c6 {[%emt 0:00:02]} 3. Nc3 {[%emt 0:00:04]} Nf6 {[%emt 0:00:05]} 4. Bg5 {[%emt 0:00:02]} e6 {[%emt 0:00:10]} 5. e3 {[%emt 0:00:02]} h6 {[%emt 0:02:47]} 6. Bh4 {[%emt 0:00:02]} Be7 {[%emt 0:01:47]} 7. cxd5 exd5 {[%emt 0:00:13]} 8. Bd3 {[%emt 0:00:21]} O-O {[%emt 0:01:22]} 9. Nge2 {[%emt 0:00:06]} Nbd7 {[%emt 0:03:28]} 10. O-O {[%emt 0:00:10]} Nh5 {[%emt 0:13:59]} 11. Bxe7 {[%emt 0:00:30]} Qxe7 {[%emt 0:00:06]} 12. Qc2 {[%emt 0:00:10]} Nb6 {[%emt 0:01:39]} 13. Na4 {[%emt 0:12:28]} f5 {[%emt 0:09:38]} 14. Nxb6 {[%emt 0:03:25]} axb6 {[%emt 0:00:04]} 15. Ng3 {[%emt 0:01:53]} Nxg3 {[%emt 0:09:47]} 16. hxg3 {[%emt 0:00:02]} Bd7 {[%emt 0:01:19]} 17. Qb3 {[%emt 0:01:59]} b5 {[%emt 0:03:05]} 18. Rfc1 {[%emt 0:01:43]} Qd6 {[%emt 0:00:41]} 19. Qc3 {[%emt 0:01:21]} g5 {[%emt 0:06:02]} 20. Qc5 {[%emt 0:07:17]} Qxc5 {[%emt 0:00:31]} 21. Rxc5 {[%emt 0:00:50]} f4 {[%emt 0:11:32]} 22. gxf4 {[%emt 0:00:23]} gxf4 {[%emt 0:00:07]} 23. e4 {[%emt 0:00:10]} Ra4 {[%emt 0:00:16]} 24. exd5 {[%emt 0:02:09]} Rxd4 {[%emt 0:01:20]} 25. dxc6 {[%emt 0:00:24]} bxc6 {[%emt 0:00:08]} 26. Be2 {[%emt 0:00:33]} Rd2 {[%emt 0:01:22]} 27. Bf3 {[%emt 0:00:22]} Rxb2 {[%emt 0:04:05]} 28. Bxc6 {[%emt 0:02:06]} Bxc6 {[%emt 0:00:05]} 29. Rxc6 {[%emt 0:00:08]} Rd8 {[%emt 0:00:19]} 30. a4 {[%emt 0:02:16]} 1/2-1/2

[Event "Najdorf Memorial-B 2022"]
[Site "Warsaw"]
[Date "2022.07.11"]
[Round "3.7"]
[White "Dropia, Rafal"]
[Black "Trochimczuk, Szymon"]
[Result "0-1"]
[ECO "D00"]
[WhiteElo "1624"]
[BlackElo "1480"]
[Annotator "NA RC"]
[PlyCount "106"]
[EventDate "2022.07.09"]
[EventType "swiss"]
[EventCountry "POL"]
[SourceTitle "playchess.com"]
[Source "ChessBase"]
[SourceQuality "1"]
[TimeControl "40/5400+30:1800+30"]

1. d4 {[%emt 0:00:01]} d5 {[%emt 0:00:05]} 2. Bf4 {[%emt 0:00:04]} c5 {[%emt 0:00:03]} 3. e3 {[%emt 0:00:38]} Nc6 {[%emt 0:00:05]} 4. Nf3 {[%emt 0:00:27]} Nf6 {[%emt 0:00:05]} 5. c3 {[%emt 0:00:09]} Qb6 {[%emt 0:00:08]} 6. Qb3 {[%emt 0:00:16]} c4 {[%emt 0:00:04]} 7. Qxb6 {[%emt 0:00:04]} axb6 {[%emt 0:00:06]} 8. Na3 {[%emt 0:00:03]} Bf5 {[%emt 0:01:13]} 9. Nb5 {[%emt 0:00:37]} Ra5 {[%emt 0:00:43]} 10. Nc7+ {[%emt 0:28:41]} Kd7 {[%emt 0:00:45]} 11. Ne5+ {[%emt 0:07:05]} Nxe5 {[%emt 0:05:58]} 12. dxe5 {[%emt 0:00:01]} Nh5 {[%emt 0:02:31]} 13. Nxd5 {[%emt 0:00:16]} Rxd5 {[%emt 0:01:05]} 14. Bxc4 {[%emt 0:00:02]} Nxf4 {[%emt 0:01:37]} 15. exf4 {[%emt 0:00:10]} Rc5 {[%emt 0:09:52]} 16. Bxf7 {[%emt 0:00:27]} e6 {[%emt 0:02:15]} 17. Rd1+ {[%emt 0:01:28]} Kc8 {[%emt 0:02:54]} 18. Bh5 {[%emt 0:02:12]} Be7 {[%emt 0:02:02]} 19. Ke2 {[%emt 0:03:54]} Rd8 {[%emt 0:02:27]} 20. Bf3 {[%emt 0:01:57]} Rxd1 {[%emt 0:01:38]} 21. Rxd1 {[%emt 0:00:02]} g5 {[%emt 0:03:12]} 22. g3 {[%emt 0:00:39]} gxf4 {[%emt 0:07:05]} 23. gxf4 {[%emt 0:00:02]} Rc4 {[%emt 0:03:52]} 24. Rd4 {[%emt 0:00:25]} b5 {[%emt 0:06:45]} 25. Rxc4+ {[%emt 0:03:52]} bxc4 {[%emt 0:00:04]} 26. b4 {[%emt 0:00:05]} cxb3 {[%emt 0:12:50]} 27. axb3 {[%emt 0:00:01]} Ba3 {[%emt 0:01:00]} 28. Kd2 {[%emt 0:02:13]} Bc5 {[%emt 0:05:05]} 29. Ke2 {[%emt 0:01:48]} Kc7 {[%emt 0:01:21]} 30. Bh5 {[%emt 0:01:32]} Be4 {[%emt 0:04:19]} 31. Bg4 {[%emt 0:08:00]} Kd7 {[%emt 0:00:49]} 32. Bh5 {[%emt 0:08:19]} Ke7 {[%emt 0:01:07]} 33. Bg4 {[%emt 0:01:00]} Ba7 {[%emt 0:03:45]} 34. c4 {[%emt 0:21:13]} Bc5 {[%emt 0:02:18]} 35. Bf3 {[%emt 0:01:53]} Bxf3+ {[%emt 0:02:55]} 36. Kxf3 {[%emt 0:00:02]} Kf7 {[%emt 0:02:51]} 37. Ke4 {[%emt 0:00:04]} Bxf2 {[%emt 0:01:18]} 38. b4 {[%emt 0:02:31]} Be1 {[%emt 0:01:54]} 39. b5 {[%emt 0:00:32]} Bf2 {[%emt 0:01:15]} 40. f5 {[%emt 0:00:00]} Bc5 {[%emt 0:00:00]} 41. Kf4 {[%emt 0:04:25]} exf5 {[%emt 0:08:18]} 42. Kxf5 {[%emt 0:00:09]} Ke7 {[%emt 0:01:59]} 43. h3 {[%emt 0:11:17]} b6 {[%emt 0:02:59]} 44. Kf4 {[%emt 0:08:52]} Ke6 {[%emt 0:00:20]} 45. Ke4 {[%emt 0:00:05]} Bg1 {[%emt 0:02:39]} 46. h4 {[%emt 0:00:44]} h5 {[%emt 0:02:24]} 47. Kf4 {[%emt 0:00:12]} Bc5 {[%emt 0:01:00]} 48. Ke4 {[%emt 0:00:23]} Bf2 {[%emt 0:02:22]} 49. Kf3 {[%emt 0:00:41]} Bxh4 {[%emt 0:01:45]} 50. c5 {[%emt 0:00:14]} bxc5 {[%emt 0:00:11]} 51. b6 {[%emt 0:00:45]} Bd8 {[%emt 0:00:41]} 52. b7 {[%emt 0:00:13]} Bc7 {[%emt 0:00:04]} 53. Ke4 {[%emt 0:00:55]} Bxe5 {[%emt 0:00:25]} 0-1

[Event "Najdorf Memorial-B 2022"]
[Site "Warsaw"]
[Date "2022.07.11"]
[Round "3.8"]
[White "Bartoszczuk, Adam"]
[Black "Bubien, Antoni"]
[Result "0-1"]
[ECO "B06"]
[WhiteElo "1596"]
[BlackElo "1472"]
[Annotator "NA"]
[PlyCount "140"]
[EventDate "2022.07.09"]
[EventType "swiss"]
[EventCountry "POL"]
[SourceTitle "playchess.com"]
[Source "ChessBase"]
[SourceQuality "1"]
[TimeControl "40/5400+30:1800+30"]

1. e4 {[%emt 0:00:01]} g6 {[%emt 0:00:05]} 2. d4 {[%emt 0:00:21]} Bg7 {[%emt 0:00:05]} 3. Nc3 {[%emt 0:00:43]} d6 {[%emt 0:00:05]} 4. f4 {[%emt 0:00:07]} a6 {[%emt 0:00:05]} 5. Nf3 {[%emt 0:00:11]} b5 {[%emt 0:00:05]} 6. a3 {[%emt 0:01:44]} Nd7 {[%emt 0:00:29]} 7. Be2 {[%emt 0:04:37]} Bb7 {[%emt 0:00:50]} 8. O-O {[%emt 0:02:11]} c5 {[%emt 0:01:54]} 9. d5 {[%emt 0:00:45]} Nb6 {[%emt 0:09:28]} 10. Be3 {[%emt 0:07:58]} Nf6 {[%emt 0:02:07]} 11. Nd2 {[%emt 0:02:47]} O-O {[%emt 0:01:05]} 12. Bf3 {[%emt 0:01:56]} e6 {[%emt 0:05:26]} 13. dxe6 {[%emt 0:09:45]} fxe6 {[%emt 0:00:06]} 14. Qe2 {[%emt 0:01:17]} Qc7 {[%emt 0:01:46]} 15. Qf2 {[%emt 0:01:32]} Rac8 {[%emt 0:01:54]} 16. e5 {[%emt 0:04:48]} Bxf3 {[%emt 0:03:44]} 17. exf6 {[%emt 0:00:33]} Rxf6 {[%emt 0:01:30]} 18. Qxf3 {[%emt 0:01:35]} d5 {[%emt 0:00:14]} 19. Ne2 {[%emt 0:04:05]} d4 {[%emt 0:00:55]} 20. Bf2 {[%emt 0:00:17]} e5 {[%emt 0:01:27]} 21. Bh4 {[%emt 0:01:50]} Rf5 {[%emt 0:00:38]} 22. Qe4 {[%emt 0:02:33]} exf4 {[%emt 0:01:14]} 23. Nxf4 {[%emt 0:17:47]} Re5 {[%emt 0:01:33]} 24. Qf3 {[%emt 0:03:26]} Rf8 {[%emt 0:03:50]} 25. Qg4 {[%emt 0:04:45]} Qc6 {[%emt 0:04:14]} 26. Nd3 {[%emt 0:01:10]} Rxf1+ {[%emt 0:01:37]} 27. Rxf1 {[%emt 0:00:16]} Re8 {[%emt 0:00:18]} 28. Qf3 {[%emt 0:03:25]} Qxf3 {[%emt 0:01:59]} 29. Nxf3 {[%emt 0:00:05]} c4 {[%emt 0:00:11]} 30. Nb4 {[%emt 0:00:14]} Re2 {[%emt 0:00:12]} 31. Rf2 {[%emt 0:00:31]} Re3 {[%emt 0:01:07]} 32. Bg5 {[%emt 0:00:34]} Re4 {[%emt 0:00:10]} 33. Nxa6 {[%emt 0:01:03]} Na4 {[%emt 0:03:03]} 34. b3 {[%emt 0:02:17]} Nc3 {[%emt 0:00:04]} 35. Nc5 {[%emt 0:01:13]} Re8 {[%emt 0:00:10]} 36. Kf1 {[%emt 0:08:27]} Ra8 {[%emt 0:01:29]} 37. Bc1 {[%emt 0:01:12]} Na2 {[%emt 0:01:53]} 38. Bd2 {[%emt 0:02:41]} Rxa3 {[%emt 0:00:24]} 39. bxc4 {[%emt 0:01:22]} bxc4 {[%emt 0:00:07]} 40. Ne6 {[%emt 0:00:00]} d3 {[%emt 0:00:00]} 41. Be1 {[%emt 0:11:51]} Bh6 {[%emt 0:08:52]} 42. cxd3 {[%emt 0:05:02]} cxd3 {[%emt 0:06:07]} 43. Bd2 {[%emt 0:00:22]} Bxd2 {[%emt 0:06:29]} 44. Rxd2 {[%emt 0:00:09]} Nb4 {[%emt 0:08:52]} 45. Nf4 {[%emt 0:01:57]} Kg7 {[%emt 0:06:34]} 46. Ne1 {[%emt 0:03:53]} g5 {[%emt 0:06:39]} 47. Nfxd3 {[%emt 0:00:12]} Nd5 {[%emt 0:00:12]} 48. Ke2 {[%emt 0:06:22]} h5 {[%emt 0:00:47]} 49. Nf3 {[%emt 0:03:51]} Kf6 {[%emt 0:00:24]} 50. Rc2 {[%emt 0:01:49]} Ra4 {[%emt 0:01:17]} 51. Rc6+ {[%emt 0:01:51]} Kf5 {[%emt 0:00:14]} 52. Rc2 {[%emt 0:00:44]} Rg4 {[%emt 0:04:41]} 53. Kf2 {[%emt 0:01:00]} Nf6 {[%emt 0:03:29]} 54. Rc5+ {[%emt 0:00:42]} Ke6 {[%emt 0:01:00]} 55. Re5+ {[%emt 0:00:48]} Kd6 {[%emt 0:00:19]} 56. Kg1 {[%emt 0:00:57]} Ra4 {[%emt 0:04:13]} 57. Nxg5 {[%emt 0:00:36]} Ng4 {[%emt 0:00:26]} 58. h3 {[%emt 0:01:53]} Nxe5 {[%emt 0:00:09]} 59. Nxe5 {[%emt 0:00:13]} Kxe5 {[%emt 0:00:08]} 60. Kh2 {[%emt 0:00:20]} Kf4 {[%emt 0:02:36]} 61. Ne6+ {[%emt 0:00:15]} Ke3 {[%emt 0:00:46]} 62. Ng7 {[%emt 0:00:43]} h4 {[%emt 0:00:55]} 63. Nf5+ {[%emt 0:00:03]} Kf2 {[%emt 0:00:14]} 64. Kh1 {[%emt 0:00:25]} Rf4 {[%emt 0:01:06]} 65. Ng7 {[%emt 0:01:18]} Rf7 {[%emt 0:03:27]} 66. Nh5 {[%emt 0:00:03]} Rf5 {[%emt 0:01:11]} 67. Ng7 {[%emt 0:00:44]} Rg5 {[%emt 0:00:32]} 68. Ne6 {[%emt 0:00:07]} Re5 {[%emt 0:02:16]} 69. Nf4 {[%emt 0:01:20]} Kg3 {[%emt 0:00:28]} 70. Nd3 {[%emt 0:00:17]} Re3 {[%emt 0:00:16]} 0-1

[Event "Najdorf Memorial-B 2022"]
[Site "Warsaw"]
[Date "2022.07.11"]
[Round "3.9"]
[White "Krogulski, Maksymilian"]
[Black "Matskevich, Varvara"]
[Result "0-1"]
[ECO "B50"]
[WhiteElo "1584"]
[BlackElo "1467"]
[Annotator "NA RC"]
[PlyCount "134"]
[EventDate "2022.07.09"]
[EventType "swiss"]
[EventCountry "POL"]
[SourceTitle "playchess.com"]
[Source "ChessBase"]
[SourceQuality "1"]
[TimeControl "40/5400+30:1800+30"]

1. e4 {[%emt 0:00:01]} c5 {[%emt 0:11:19]} 2. Nf3 {[%emt 0:00:02]} d6 {[%emt 0:00:28]} 3. c3 {[%emt 0:00:05]} Nf6 {[%emt 0:00:33]} 4. h3 {[%emt 0:00:02]} Nc6 {[%emt 0:02:16]} 5. Bd3 {[%emt 0:00:08]} e5 {[%emt 0:01:11]} 6. O-O {[%emt 0:00:35]} Be7 {[%emt 0:01:11]} 7. Re1 {[%emt 0:01:19]} O-O {[%emt 0:00:45]} 8. Bc2 {[%emt 0:00:27]} Qc7 {[%emt 0:09:39]} 9. Na3 {[%emt 0:01:54]} a6 {[%emt 0:00:31]} 10. d4 {[%emt 0:02:09]} b5 {[%emt 0:02:06]} 11. d5 {[%emt 0:01:12]} Na5 {[%emt 0:01:06]} 12. Bd2 {[%emt 0:01:21]} Bd7 {[%emt 0:00:33]} 13. Rc1 {[%emt 0:00:27]} Qb6 {[%emt 0:01:40]} 14. b4 {[%emt 0:00:35]} cxb4 {[%emt 0:01:07]} 15. cxb4 {[%emt 0:00:02]} Nc4 {[%emt 0:00:26]} 16. Nxc4 {[%emt 0:00:22]} bxc4 {[%emt 0:00:08]} 17. Ba4 {[%emt 0:00:15]} Bb5 {[%emt 0:00:49]} 18. Be3 {[%emt 0:01:20]} Qb7 {[%emt 0:00:33]} 19. Nd2 {[%emt 0:00:33]} Qd7 {[%emt 0:01:36]} 20. Bxb5 {[%emt 0:01:04]} axb5 {[%emt 0:00:22]} 21. Qc2 {[%emt 0:00:29]} Ra4 {[%emt 0:01:23]} 22. Qb2 {[%emt 0:02:35]} Rfa8 {[%emt 0:00:38]} 23. Ra1 {[%emt 0:00:59]} Qc8 {[%emt 0:00:50]} 24. Rec1 {[%emt 0:01:10]} Ra3 {[%emt 0:04:31]} 25. Rc3 {[%emt 0:01:22]} Qa6 {[%emt 0:00:55]} 26. Rxa3 {[%emt 0:00:12]} Qxa3 {[%emt 0:00:15]} 27. Qxa3 {[%emt 0:00:04]} Rxa3 {[%emt 0:00:19]} 28. Kf1 {[%emt 0:00:51]} Ra4 {[%emt 0:02:45]} 29. f3 {[%emt 0:08:19]} Rxb4 {[%emt 0:00:24]} 30. Rb1 {[%emt 0:00:01]} Rxb1+ {[%emt 0:00:45]} 31. Nxb1 {[%emt 0:00:00]} b4 {[%emt 0:01:33]} 32. Nd2 {[%emt 0:01:12]} c3 {[%emt 0:00:07]} 33. Nb3 {[%emt 0:00:01]} Bd8 {[%emt 0:00:21]} 34. Ke2 {[%emt 0:00:01]} Nd7 {[%emt 0:00:19]} 35. Kd3 {[%emt 0:00:20]} Bb6 {[%emt 0:01:46]} 36. Bc1 {[%emt 0:00:15]} Nc5+ {[%emt 0:01:24]} 37. Nxc5 {[%emt 0:00:50]} Bxc5 {[%emt 0:00:13]} 38. a3 {[%emt 0:01:13]} bxa3 {[%emt 0:00:06]} 39. Kxc3 {[%emt 0:00:09]} a2 {[%emt 0:00:13]} 40. Bb2 {[%emt 0:00:00]} Bd4+ {[%emt 0:00:00]} 41. Kb3 {[%emt 0:02:22]} a1=Q {[%emt 0:00:46]} 42. Bxa1 {[%emt 0:00:01]} Bxa1 {[%emt 0:00:07]} 43. Kb4 {[%emt 0:00:10]} g6 {[%emt 0:00:27]} 44. Kb5 {[%emt 0:00:05]} Kf8 {[%emt 0:00:23]} 45. Kc6 {[%emt 0:00:26]} Ke7 {[%emt 0:00:09]} 46. g4 {[%emt 0:01:16]} Bd4 {[%emt 0:00:31]} 47. Kc7 {[%emt 0:00:25]} Bc5 {[%emt 0:00:31]} 48. Kc8 {[%emt 0:02:11]} f5 {[%emt 0:00:33]} 49. Kc7 {[%emt 0:00:58]} fxe4 {[%emt 0:00:48]} 50. fxe4 {[%emt 0:00:02]} Kf6 51. h4 {[%emt 0:01:05]} Ke7 {[%emt 0:00:50]} 52. Kc6 {[%emt 0:00:13]} h5 {[%emt 0:00:26]} 53. gxh5 {[%emt 0:00:37]} gxh5 {[%emt 0:00:10]} 54. Kb5 {[%emt 0:00:08]} Bf2 {[%emt 0:00:09]} 55. Kc4 {[%emt 0:00:01]} Bxh4 {[%emt 0:00:10]} 56. Kd3 {[%emt 0:00:22]} Kf6 {[%emt 0:00:10]} 57. Ke3 {[%emt 0:00:01]} Kg5 {[%emt 0:00:29]} 58. Kf3 {[%emt 0:00:00]} Be1 {[%emt 0:00:17]} 59. Kg2 {[%emt 0:00:08]} Kf4 {[%emt 0:00:10]} 60. Kf1 {[%emt 0:00:13]} Kxe4 {[%emt 0:00:07]} 61. Kxe1 {[%emt 0:02:26]} Kf3 {[%emt 0:00:21]} 62. Kf1 {[%emt 0:00:06]} e4 {[%emt 0:00:12]} 63. Kg1 {[%emt 0:00:10]} e3 {[%emt 0:00:09]} 64. Kh2 {[%emt 0:00:11]} e2 {[%emt 0:00:14]} 65. Kh3 {[%emt 0:00:03]} e1=Q {[%emt 0:00:13]} 66. Kh2 {[%emt 0:00:04]} Qg3+ {[%emt 0:00:20]} 67. Kh1 {[%emt 0:00:01]} Qg2# {[%emt 0:00:11]} 0-1

[Event "Najdorf Memorial-B 2022"]
[Site "Warsaw"]
[Date "2022.07.11"]
[Round "3.10"]
[White "Kalus, Franciszek"]
[Black "Chekhani, Anna"]
[Result "1/2-1/2"]
[ECO "E16"]
[WhiteElo "1344"]
[BlackElo "1575"]
[Annotator "NA RC"]
[PlyCount "54"]
[EventDate "2022.07.09"]
[EventType "swiss"]
[EventCountry "POL"]
[SourceTitle "playchess.com"]
[Source "ChessBase"]
[SourceQuality "1"]
[TimeControl "40/5400+30:1800+30"]

1. d4 {[%emt 0:00:01]} Nf6 {[%emt 0:00:11]} 2. c4 {[%emt 0:00:03]} e6 {[%emt 0:00:09]} 3. Nf3 {[%emt 0:00:03]} Bb4+ {[%emt 0:02:52]} 4. Bd2 {[%emt 0:00:04]} Qe7 {[%emt 0:01:41]} 5. g3 {[%emt 0:00:10]} b6 {[%emt 0:03:55]} 6. Bg2 {[%emt 0:00:08]} Bb7 {[%emt 0:00:15]} 7. O-O {[%emt 0:00:14]} O-O {[%emt 0:01:51]} 8. Bf4 {[%emt 0:03:44]} Bd6 {[%emt 0:14:40]} 9. Bxd6 {[%emt 0:00:22]} cxd6 {[%emt 0:00:29]} 10. Nc3 {[%emt 0:00:37]} Rc8 {[%emt 0:16:08]} 11. b3 {[%emt 0:10:07]} d5 {[%emt 0:05:23]} 12. Nd2 {[%emt 0:01:16]} d6 {[%emt 0:00:16]} 13. Rc1 {[%emt 0:00:47]} dxc4 {[%emt 0:01:15]} 14. Bxb7 {[%emt 0:02:32]} Qxb7 {[%emt 0:00:11]} 15. Nxc4 {[%emt 0:00:03]} Qd7 {[%emt 0:02:27]} 16. a4 {[%emt 0:06:56]} d5 {[%emt 0:07:52]} 17. Ne5 {[%emt 0:00:07]} Qd8 {[%emt 0:11:02]} 18. Nb5 {[%emt 0:04:55]} Ne8 {[%emt 0:02:06]} 19. Rxc8 {[%emt 0:05:09]} Qxc8 {[%emt 0:00:10]} 20. Qc1 {[%emt 0:00:03]} Qb7 {[%emt 0:01:32]} 21. Qa3 {[%emt 0:08:32]} f6 {[%emt 0:03:58]} 22. Nd3 {[%emt 0:01:10]} Nc6 {[%emt 0:00:26]} 23. Rc1 {[%emt 0:05:03]} Qd7 {[%emt 0:03:30]} 24. Nb4 {[%emt 0:05:42]} Ne7 {[%emt 0:06:44]} 25. Na6 {[%emt 0:02:25]} Rc8 {[%emt 0:00:32]} 26. Rxc8 {[%emt 0:00:21]} Nxc8 {[%emt 0:00:13]} 27. Qc1 {[%emt 0:00:36]} Ncd6 {[%emt 0:02:32]} 1/2-1/2